[Event "Titled Tuesday Blitz May 18 2021"]
[White "Van Foreest, Jorden"]
[Black "Timmermans, Mark"]
[WhiteFideId "1039784"]
[BlackFideId "1026399"]
[WhiteElo "2622"]
[BlackElo "2460"]
[Result "1-0"]
[Round "11"]
[TimeControl "180+1"]
[Date "2021.05.18"]
[WhiteClock "0:00:06"]
[BlackClock "0:00:08"]

1. a3 {[%clk 0:02:29]}  c6 {[%clk 0:02:53]} 2. Nc3 {[%clk 0:02:17]}  d5 {[%clk 0:02:53]} 3. f4 {[%clk 0:02:16]}  g6 {[%clk 0:02:52]} 4. Nf3 {[%clk 0:02:15]}  Bg7 {[%clk 0:02:53]} 5. e3 {[%clk 0:02:16]}  Nd7 {[%clk 0:02:52]} 6. d4 {[%clk 0:02:16]}  Ngf6 {[%clk 0:02:51]} 7. Bd3 {[%clk 0:02:17]}  O-O {[%clk 0:02:51]} 8. O-O {[%clk 0:02:17]}  Re8 {[%clk 0:02:48]} 9. Ne5 {[%clk 0:02:17]}  c5 {[%clk 0:02:45]} 10. Kh1 {[%clk 0:02:13]}  Qb6 {[%clk 0:02:44]} 11. Bb5 {[%clk 0:02:03]}  cxd4 {[%clk 0:02:40]} 12. exd4 {[%clk 0:01:59]}  Qd6 {[%clk 0:02:30]} 13. f5 {[%clk 0:01:53]}  a6 {[%clk 0:02:20]} 14. Bxd7 {[%clk 0:01:40]}  Bxd7 {[%clk 0:02:21]} 15. Bf4 {[%clk 0:01:38]}  Bxf5 {[%clk 0:02:12]} 16. Nxg6 {[%clk 0:01:21]}  Qb6 {[%clk 0:02:03]} 17. Nh4 {[%clk 0:01:21]}  Bg6 {[%clk 0:02:02]} 18. Be5 {[%clk 0:01:20]}  Qxb2 {[%clk 0:01:59]} 19. Qf3 {[%clk 0:01:09]}  Rac8 {[%clk 0:01:33]} 20. Nxd5 {[%clk 0:01:08]}  Be4 {[%clk 0:01:00]} 21. Nxf6+ {[%clk 0:00:54]}  exf6 {[%clk 0:00:59]} 22. Qxe4 {[%clk 0:00:54]}  fxe5 {[%clk 0:00:57]} 23. Nf5 {[%clk 0:00:54]}  Bf8 {[%clk 0:00:33]} 24. d5 {[%clk 0:00:30]}  Rxc2 {[%clk 0:00:32]} 25. Rab1 {[%clk 0:00:27]}  Rf2 {[%clk 0:00:30]} 26. h3 {[%clk 0:00:17]}  Qe2 {[%clk 0:00:26]} 27. Qxe2 {[%clk 0:00:13]}  Rxe2 {[%clk 0:00:26]} 28. Rxb7 {[%clk 0:00:12]}  Rd2 {[%clk 0:00:23]} 29. Ne3 {[%clk 0:00:10]}  Bh6 {[%clk 0:00:21]} 30. Ng4 {[%clk 0:00:10]}  Bf4 {[%clk 0:00:17]} 31. Nf6+ {[%clk 0:00:09]}  Kf8 {[%clk 0:00:18]} 32. g3 {[%clk 0:00:08]}  Rc8 {[%clk 0:00:14]} 33. gxf4 {[%clk 0:00:07]}  Rcc2 {[%clk 0:00:14]} 34. Ng4 {[%clk 0:00:07]}  exf4 {[%clk 0:00:12]} 35. d6 {[%clk 0:00:05]}  Rc3 {[%clk 0:00:11]} 36. Nf2 {[%clk 0:00:05]}  Rf3 {[%clk 0:00:10]} 37. Rb8+ {[%clk 0:00:03]}  Kg7 {[%clk 0:00:10]} 38. Rg1+ {[%clk 0:00:03]}  Kf6 {[%clk 0:00:09]} 39. Ne4+ {[%clk 0:00:03]}  Ke5 {[%clk 0:00:06]} 40. Nxd2 {[%clk 0:00:04]}  Rxh3+ {[%clk 0:00:07]} 41. Kg2 {[%clk 0:00:04]}  Rg3+ {[%clk 0:00:08]} 42. Kf2 {[%clk 0:00:04]}  Rd3 {[%clk 0:00:08]} 43. Nf3+ {[%clk 0:00:05]}  Kxd6 {[%clk 0:00:08]} 44. Rd8+ {[%clk 0:00:06]} 1-0


[Site "https://www.chess.com"]

[Event "Titled Tuesday Blitz May 18 2021"]
[White "ViditYT"]
[Black "Murzin, Volodar"]
[BlackFideId "44155573"]
[WhiteElo "2928"]
[BlackElo "2541"]
[Result "1-0"]
[Round "11"]
[TimeControl "180+1"]
[Date "2021.05.18"]
[WhiteClock "0:00:25"]
[BlackClock "0:00:03"]

1. b3 {[%clk 0:03:00]}  e5 {[%clk 0:02:58]} 2. Bb2 {[%clk 0:03:01]}  Nc6 {[%clk 0:02:58]} 3. e3 {[%clk 0:02:54]}  g6 {[%clk 0:02:56]} 4. c4 {[%clk 0:02:53]}  Bg7 {[%clk 0:02:53]} 5. Nf3 {[%clk 0:02:52]}  Nge7 {[%clk 0:02:52]} 6. d4 {[%clk 0:02:36]}  exd4 {[%clk 0:02:50]} 7. Nxd4 {[%clk 0:02:37]}  O-O {[%clk 0:02:46]} 8. Be2 {[%clk 0:02:35]}  Qe8 {[%clk 0:02:37]} 9. Qd2 {[%clk 0:02:15]}  Nxd4 {[%clk 0:02:06]} 10. Bxd4 {[%clk 0:02:14]}  Bxd4 {[%clk 0:02:05]} 11. Qxd4 {[%clk 0:02:15]}  Nc6 {[%clk 0:02:03]} 12. Qd2 {[%clk 0:02:15]}  d6 {[%clk 0:02:02]} 13. Nc3 {[%clk 0:02:14]}  Qe5 {[%clk 0:02:00]} 14. O-O {[%clk 0:02:14]}  Be6 {[%clk 0:01:58]} 15. Rac1 {[%clk 0:02:12]}  Rfe8 {[%clk 0:01:56]} 16. Bf3 {[%clk 0:02:05]}  Rad8 {[%clk 0:01:47]} 17. Nd5 {[%clk 0:01:58]}  Rd7 {[%clk 0:01:46]} 18. Rfd1 {[%clk 0:01:52]}  Qg7 {[%clk 0:01:40]} 19. Be2 {[%clk 0:01:46]}  Ne5 {[%clk 0:01:36]} 20. Qa5 {[%clk 0:01:39]}  c6 {[%clk 0:01:22]} 21. Nc7 {[%clk 0:01:28]}  Red8 {[%clk 0:01:02]} 22. Nxe6 {[%clk 0:01:05]}  fxe6 {[%clk 0:01:03]} 23. Qxa7 {[%clk 0:01:04]}  d5 {[%clk 0:01:03]} 24. Qb6 {[%clk 0:00:54]}  Qe7 {[%clk 0:00:58]} 25. cxd5 {[%clk 0:00:37]}  exd5 {[%clk 0:00:49]} 26. b4 {[%clk 0:00:36]}  Nc4 {[%clk 0:00:14]} 27. Qd4 {[%clk 0:00:34]}  b5 {[%clk 0:00:05]} 28. a4 {[%clk 0:00:33]}  Qxb4 {[%clk 0:00:04]} 29. axb5 {[%clk 0:00:33]}  cxb5 {[%clk 0:00:05]} 30. Rb1 {[%clk 0:00:33]}  Qa5 {[%clk 0:00:01]} 31. Bg4 {[%clk 0:00:30]}  Rd6 {[%clk 0:00:01]} 32. Qc5 {[%clk 0:00:30]}  b4 {[%clk 0:00:02]} 33. Qxa5 {[%clk 0:00:29]}  Nxa5 {[%clk 0:00:03]} 34. Rxb4 {[%clk 0:00:29]}  Nc6 {[%clk 0:00:03]} 35. Rb6 {[%clk 0:00:27]}  d4 {[%clk 0:00:03]} 36. Bf3 {[%clk 0:00:25]}  dxe3 {[%clk 0:00:02]} 37. Rxd6 {[%clk 0:00:25]}  Rxd6 {[%clk 0:00:03]} 38. fxe3 {[%clk 0:00:25]} 1-0


[Site "https://www.chess.com"]